fUST/lending_fUST_20250424
["ID","MTS","AMOUNT","RATE_DAILY","PERIOD"]
[358860985,1745490632877,-500.0,0.0001699,2]
[358860986,1745490632886,-500.0,0.0001699,2]
[358860987,1745490632895,-229.70073142,0.0001699,2]
[358860988,1745490632907,-500.0,0.0001699,2]
[358860989,1745490632916,-500.0,0.0001699,2]
[358860990,1745490632925,-500.0,0.0001699,2]
[358860991,1745490632935,-500.0,0.0001699,2]
[358860992,1745490632944,-500.0,0.0001699,2]
[358860993,1745490632953,-500.0,0.0001699,2]
[358860994,1745490632962,-500.0,0.0001699,2]
[358860995,1745490632971,-285.11459658,0.0001699,2]
[358860996,1745490632980,-500.0,0.0001699,2]
[358860997,1745490632989,-500.0,0.0001699,2]
[358860998,1745490632999,-500.0,0.0001699,2]
[358860999,1745490633008,-500.0,0.0001699,2]
[358861000,1745490633017,-500.0,0.0001699,2]
[358861001,1745490633027,-500.0,0.0001699,2]
[358861002,1745490633036,-500.0,0.0001699,2]
[358861003,1745490633045,-500.0,0.0001699,2]
[358861004,1745490633055,-333.01870165,0.00016991,2]
[358861005,1745490633064,-500.0,0.00017,2]
[358861006,1745490633074,-500.0,0.00017,2]
[358861007,1745490633083,-500.0,0.00017,2]
[358861008,1745490633094,-4682.01079792,0.00017087,2]
[358861009,1745490633106,-312.06246489,0.00017087,2]
[358861041,1745490638719,-40466.31969524,0.00017087,2]
[358861042,1745490638729,-178.6347788,0.00017104,2]
[358861043,1745490638739,-250.0,0.00017575,2]
[358861044,1745490638749,-500.0,0.00017708,2]
[358861045,1745490638758,-14175.9343084,0.00017708,2]
[358861046,1745490638768,-216.0,0.00018556,2]
[358861047,1745490638778,-420.0,0.00018556,2]
[358861048,1745490638787,-1680.0,0.00018647,2]
[358861049,1745490638797,-192.32641142,0.000189,2]
[358861050,1745490638807,-4126.3567331,0.00019072,2]
[358861051,1745490638816,-500.0,0.00019173,2]
[358861052,1745490638826,-500.0,0.00019173,2]
[358861053,1745490638835,-500.0,0.00019173,2]
[358861054,1745490638845,-500.0,0.00019173,2]
[358861055,1745490638854,-500.0,0.00019173,2]
[358861056,1745490638863,-500.0,0.00019173,2]
[358861058,1745490638873,-500.0,0.00019173,2]
[358861059,1745490638882,-500.0,0.00019173,2]
[358861062,1745490638892,-500.06048418,0.00019173,2]
[358861065,1745490638901,-500.0,0.00019173,2]
[358861066,1745490638911,-500.0,0.00019173,2]
[358861068,1745490638920,-269.0,0.00019177,2]
[358861069,1745490638929,-502.36080311,0.00019178,2]
[358861070,1745490638939,-500.0,0.00019178,2]
[358861071,1745490638948,-520.1695866,0.00019178,2]
[358861072,1745490638957,-503.36824419,0.00019178,2]
[358861073,1745490638966,-501.07964861,0.00019178,2]
[358861074,1745490638975,-618.92,0.00019178,2]
[358861075,1745490638985,-500.0,0.00019178,2]
[358861076,1745490638994,-500.0,0.00019178,2]
[358861077,1745490639003,-500.0,0.00019178,2]
[358861078,1745490639012,-393.82572339,0.00019178,2]
[358861079,1745490639021,-500.0,0.00019178,2]
[358861080,1745490639032,-1006.81,0.00019178,2]
[358861081,1745490639041,-500.0,0.00019178,2]
[358861082,1745490639053,-500.0,0.00019178,2]
[358861083,1745490639062,-500.0,0.00019178,2]
[358861084,1745490639072,-847.56,0.00019178,2]
[358861085,1745490639083,-500.0,0.00019178,2]
[358861086,1745490639092,-500.0,0.00019178,2]
[358861087,1745490639102,-500.0,0.00019178,2]
[358861088,1745490639113,-500.0,0.00019178,2]
[358861089,1745490639123,-500.0,0.00019178,2]
[358861090,1745490639132,-500.0,0.00019178,2]
[358861091,1745490639142,-508.07,0.00019178,2]
[358861092,1745490639151,-507.45988998,0.00019178,2]
[358861093,1745490639164,-507.00756375,0.00019178,2]
[358861094,1745490639173,-500.0,0.00019178,2]
[358861095,1745490639182,-500.0,0.00019178,2]
[358861096,1745490639191,-513.86153909,0.00019178,2]
[358861097,1745490639201,-500.0,0.00019178,2]
[358861098,1745490639210,-1055.73,0.00019178,2]
[358861099,1745490639219,-500.0,0.00019178,2]
[358861100,1745490639229,-500.0,0.00019178,2]
[358861101,1745490639240,-500.0,0.00019178,2]
[358861102,1745490639250,-499.71138307,0.00019178,2]
[358861103,1745490639259,-506.11720645,0.00019178,2]
[358861104,1745490639268,-506.25112529,0.00019178,2]
[358861105,1745490639277,-500.0,0.00019178,2]
[358861106,1745490639286,-500.0,0.00019178,2]
[358861107,1745490639295,-500.0,0.00019178,2]
[358861108,1745490639304,-500.0,0.00019178,2]
[358861109,1745490639313,-504.66195433,0.00019178,2]
[358861110,1745490639322,-593.07,0.00019178,2]
[358861111,1745490639331,-500.0,0.00019178,2]
[358861112,1745490639340,-500.0,0.00019178,2]
[358861113,1745490639348,-500.0,0.00019178,2]
[358861114,1745490639358,-503.57523658,0.00019178,2]
[358861115,1745490639367,-500.0,0.00019178,2]
[358861116,1745490639377,-500.0,0.00019178,2]
[358861117,1745490639386,-520.41554789,0.00019178,2]
[358861118,1745490639395,-500.0,0.00019178,2]
[358861119,1745490639405,-507.68529747,0.00019178,2]
[358861120,1745490639561,-500.0,0.00019178,2]
[358861121,1745490639572,-500.0,0.00019178,2]
[358861122,1745490639582,-505.61932533,0.00019178,2]
[358861123,1745490639591,-500.0,0.00019178,2]
[358861124,1745490639602,-526.78439953,0.00019178,2]
[358861125,1745490639611,-517.52997165,0.00019178,2]
[358861126,1745490639620,-500.0,0.00019178,2]
[358861127,1745490639629,-500.0,0.00019178,2]
[358861128,1745490639638,-500.0,0.00019178,2]
[358861129,1745490639648,-500.0,0.00019178,2]
[358861130,1745490639657,-500.0,0.00019178,2]
[358861131,1745490639667,-500.0,0.00019178,2]
[358861132,1745490639677,-289.99002627,0.00019178,2]
[358861133,1745490639686,-500.0,0.00019178,2]
[358861134,1745490639695,-294.07193518,0.00019178,2]
[358861135,1745490639704,-500.0,0.00019178,2]
[358861136,1745490639714,-500.0,0.00019178,2]
[358861137,1745490639723,-500.0,0.00019178,2]
[358861138,1745490639732,-500.0,0.00019178,2]
[358861139,1745490639741,-500.0,0.00019178,2]
[358861140,1745490639752,-500.0,0.00019178,2]
[358861141,1745490639762,-503.7637239,0.00019178,2]
[358861142,1745490639772,-500.0,0.00019178,2]
[358861143,1745490639781,-500.0,0.00019178,2]
[358861144,1745490639791,-500.0,0.00019178,2]
[358861145,1745490639800,-638.87,0.00019178,2]
[358861146,1745490639809,-451.76606701,0.00019178,2]
[358861147,1745490639819,-500.0,0.00019178,2]
[358861148,1745490639828,-2348.49,0.00019178,2]
[358861149,1745490639838,-500.0,0.00019178,2]
[358861150,1745490639848,-351.6654449,0.00019178,2]
[358861151,1745490639858,-508.83,0.00019178,2]
[358861152,1745490639868,-792.71,0.00019178,2]
[358861153,1745490639877,-696.78,0.00019178,2]
[358861154,1745490639886,-683.73,0.00019178,2]
[358861155,1745490639897,-500.0,0.00019178,2]
[358861156,1745490639906,-500.0,0.00019178,2]
[358861157,1745490639915,-500.0,0.00019178,2]
[358861158,1745490639924,-500.0,0.00019178,2]
[358861159,1745490639933,-500.0,0.00019178,2]
[358861160,1745490639942,-500.0,0.00019178,2]
[358861161,1745490639951,-500.0,0.00019178,2]
[358861162,1745490639960,-500.0,0.00019178,2]
[358861163,1745490639969,-500.0,0.00019178,2]
[358861164,1745490639979,-717.15,0.00019178,2]
[358861165,1745490639988,-500.0,0.00019178,2]
[358861166,1745490639999,-500.0,0.00019178,2]
[358861167,1745490640008,-500.0,0.00019178,2]
[358861168,1745490640017,-547.26,0.00019178,2]
[358861169,1745490640026,-500.0,0.00019178,2]
[358861170,1745490640036,-1165.5,0.00019178,2]
[358861171,1745490640046,-617.18,0.00019178,2]
[358861172,1745490640055,-500.0,0.00019178,2]
[358861173,1745490640064,-500.0,0.00019178,2]
[358861174,1745490640073,-557.60561428,0.00019178,2]
[358861175,1745490640082,-621.68,0.00019178,2]
[358861176,1745490640091,-500.0,0.00019178,2]
[358861177,1745490640101,-500.0,0.00019178,2]
[358861178,1745490640110,-2849.32,0.00019178,2]
[358861179,1745490640119,-500.0,0.00019178,2]
[358861180,1745490640129,-500.0,0.00019178,2]
[358861181,1745490640138,-534.06,0.00019178,2]
[358861182,1745490640147,-500.0,0.00019178,2]
[358861183,1745490640156,-500.0,0.00019178,2]
[358861184,1745490640170,-1067.57,0.00019178,2]
[358861185,1745490640179,-500.0,0.00019178,2]
[358861186,1745490640188,-500.0,0.00019178,2]
[358861187,1745490640198,-500.0,0.00019178,2]
[358861188,1745490640208,-500.0,0.00019178,2]
[358861189,1745490640218,-500.0,0.00019178,2]
[358861190,1745490640227,-500.0,0.00019178,2]
[358861191,1745490640236,-500.0,0.00019178,2]
[358861192,1745490640250,-500.0,0.00019178,2]
[358861193,1745490640259,-507.08,0.00019178,2]
[358861194,1745490640268,-967.47,0.00019178,2]
[358861195,1745490640277,-725.92,0.00019178,2]
[358861196,1745490640286,-1022.05,0.00019178,2]
[358861197,1745490640295,-314.87103916,0.00019178,2]
[358861198,1745490640304,-649.68,0.00019178,2]
[358861199,1745490640314,-329.54391353,0.00019178,2]
[358861200,1745490640323,-500.0,0.00019178,2]
[358861201,1745490640332,-1171.29,0.00019178,2]
[358861202,1745490640341,-500.0,0.00019178,2]
[358861203,1745490640350,-651.54,0.00019178,2]
[358861204,1745490640359,-500.0,0.00019178,2]
[358861205,1745490640368,-911.07,0.00019178,2]
[358861206,1745490640378,-2015.37,0.00019178,2]
[358861207,1745490640387,-500.0,0.00019178,2]
[358861208,1745490640396,-500.0,0.00019178,2]
[358861209,1745490640405,-885.55,0.00019178,2]
[358861210,1745490640414,-500.0,0.00019178,2]
[358861211,1745490640424,-500.0,0.00019178,2]
[358861212,1745490640433,-500.0,0.00019178,2]
[358861213,1745490640442,-505.63924459,0.00019178,2]
[358861214,1745490640452,-500.0,0.00019178,2]
[358861215,1745490640461,-500.0,0.00019178,2]
[358861216,1745490640470,-937.75,0.00019178,2]
[358861217,1745490640480,-732.27,0.00019178,2]
[358861218,1745490640490,-500.0,0.00019178,2]
[358861219,1745490640499,-500.0,0.00019178,2]
[358861220,1745490640509,-500.0,0.00019178,2]
[358861221,1745490640518,-500.0,0.00019178,2]
[358861222,1745490640527,-617.95,0.00019178,2]
[358861223,1745490640536,-500.0,0.00019178,2]
[358861224,1745490640546,-650.02,0.00019178,2]
[358861225,1745490640555,-500.0,0.00019178,2]
[358861226,1745490640564,-500.0,0.00019178,2]
[358861227,1745490640574,-1046.3,0.00019178,2]
[358861228,1745490640583,-607.94,0.00019178,2]
[358861229,1745490640592,-500.0,0.00019178,2]
[358861230,1745490640601,-543.60969173,0.00019178,2]
[358861231,1745490640611,-600.14,0.00019178,2]
[358861232,1745490640620,-500.0,0.00019178,2]
[358861233,1745490640629,-500.0,0.00019178,2]
[358861235,1745490640639,-500.0,0.00019178,2]
[358861236,1745490640648,-160.85259476,0.00019178,2]
[358861237,1745490640657,-500.0,0.00019178,2]
[358861238,1745490640668,-798.3,0.00019178,2]
[358861239,1745490640677,-500.0,0.00019178,2]
[358861240,1745490640687,-500.0,0.00019178,2]
[358861242,1745490640696,-500.0,0.00019178,2]
[358861243,1745490640706,-151.0,0.00019178,2]
[358861244,1745490640715,-500.0,0.00019178,2]
[358861245,1745490640725,-500.0,0.00019178,2]
[358861246,1745490640734,-500.0,0.00019178,2]
[358861247,1745490640743,-168.36805303,0.00019178,2]
[358861248,1745490640752,-503.9743333,0.00019178,2]
[358861249,1745490640762,-500.0,0.00019178,2]
[358861250,1745490640771,-500.0,0.00019178,2]
[358861251,1745490640780,-500.0,0.00019178,2]
[358861252,1745490640790,-500.0,0.00019178,2]
[358861253,1745490640800,-500.0,0.00019178,2]
[358861254,1745490640809,-551.58,0.00019178,2]
[358861255,1745490640818,-500.0,0.00019178,2]
[358861256,1745490640828,-500.0,0.00019178,2]
[358861257,1745490640838,-500.0,0.00019178,2]
[358861258,1745490640847,-500.0,0.00019178,2]
[358861259,1745490640856,-500.0,0.00019178,2]
[358861260,1745490640866,-564.94,0.00019178,2]
[358861261,1745490640876,-500.0,0.00019178,2]
[358861262,1745490640885,-500.0,0.00019178,2]
[358861263,1745490640894,-500.0,0.00019178,2]
[358861264,1745490640903,-555.29546178,0.00019178,2]
[358861265,1745490640912,-500.0,0.00019178,2]
[358861266,1745490640921,-560.89743053,0.00019178,2]
[358861267,1745490640931,-500.0,0.00019178,2]
[358861268,1745490640940,-500.0,0.00019178,2]
[358861269,1745490640949,-960.86,0.00019178,2]
[358861270,1745490640958,-500.0,0.00019178,2]
[358861271,1745490640968,-500.0,0.00019178,2]
[358861272,1745490640977,-500.0,0.00019178,2]
[358861273,1745490640987,-1103.84,0.00019178,2]
[358861274,1745490640996,-500.0,0.00019178,2]
[358861275,1745490641006,-500.0,0.00019178,2]
[358861276,1745490641015,-500.0,0.00019178,2]
[358861277,1745490641024,-500.0,0.00019178,2]
[358861278,1745490641033,-500.0,0.00019178,2]
[358861279,1745490641043,-500.0,0.00019178,2]
[358861280,1745490641052,-500.0,0.00019178,2]
[358861281,1745490641061,-500.0,0.00019178,2]
[358861282,1745490641070,-4483.76,0.00019178,2]
[358861283,1745490641080,-500.0,0.00019178,2]
[358861284,1745490641089,-1330.02,0.00019178,2]
[358861285,1745490641098,-500.0,0.00019178,2]
[358861286,1745490641107,-1151.73,0.00019178,2]
[358861287,1745490641117,-597.12,0.00019178,2]
[358861288,1745490641127,-885.38,0.00019178,2]
[358861289,1745490641136,-883.7,0.00019178,2]
[358861290,1745490641146,-500.0,0.00019178,2]
[358861291,1745490641156,-3463.8,0.00019178,2]
[358861292,1745490641171,-888.76,0.00019178,2]
[358861293,1745490641180,-172.73930877,0.00019178,2]
[358861294,1745490641190,-602.19,0.00019178,2]
[358861295,1745490641199,-1543.62,0.00019178,2]
[358861296,1745490641210,-510.97,0.00019178,2]
[358861297,1745490641219,-500.0,0.00019178,2]
[358861298,1745490641228,-548.14,0.00019178,2]
[358861299,1745490641242,-815.83,0.00019178,2]
[358861300,1745490641252,-500.0,0.00019178,2]
[358861301,1745490641261,-858.68,0.00019178,2]
[358861302,1745490641271,-500.0,0.00019178,2]
[358861303,1745490641280,-507.67011091,0.00019178,2]
[358861304,1745490641290,-500.0,0.00019178,2]
[358861305,1745490641299,-500.0,0.00019178,2]
[358861306,1745490641309,-151.0,0.00019178,2]
[358861307,1745490641318,-1134.22,0.00019178,2]
[358861308,1745490641329,-500.0,0.00019178,2]
[358861309,1745490641339,-500.0,0.00019178,2]
[358861310,1745490641347,-1000.0,0.00019178,2]
[358861311,1745490641356,-3484.88,0.00019178,2]
[358861312,1745490641365,-839.43,0.00019178,2]
[358861313,1745490641375,-500.0,0.00019178,2]
[358861314,1745490641384,-500.0,0.00019178,2]
[358861315,1745490641394,-500.0,0.00019178,2]
[358861316,1745490641404,-500.11095084,0.00019178,2]
[358861317,1745490641413,-500.0,0.00019178,2]
[358861318,1745490641422,-621.94,0.00019178,2]
[358861319,1745490641432,-1165.28,0.00019178,2]
[358861320,1745490641441,-1263.35,0.00019178,2]
[358861321,1745490641451,-270.04147169,0.00019178,2]
[358861322,1745490641460,-500.0,0.00019178,2]
[358861323,1745490641470,-151.0,0.00019178,2]
[358861324,1745490641479,-500.0,0.00019178,2]
[358861325,1745490641489,-497.53616167,0.00019178,2]
[358861326,1745490641498,-151.0,0.00019178,2]
[358861327,1745490641507,-3854.2,0.00019178,2]
[358861328,1745490641517,-500.0,0.00019178,2]
[358861329,1745490641527,-529.55,0.00019178,2]
[358861330,1745490641536,-1198.98,0.00019178,2]
[358861331,1745490641546,-500.0,0.00019178,2]
[358861332,1745490641555,-500.0,0.00019178,2]
[358861333,1745490641565,-500.0,0.00019178,2]
[358861334,1745490641575,-1834.23,0.00019178,2]
[358861335,1745490641584,-1395.34,0.00019178,2]
[358861336,1745490641594,-500.0,0.00019178,2]
[358861337,1745490641603,-500.0,0.00019178,2]
[358861338,1745490641612,-1345.59,0.00019178,2]
[358861339,1745490641622,-500.0,0.00019178,2]
[358861340,1745490641631,-798.43,0.00019178,2]
[358861341,1745490641641,-554.09,0.00019178,2]
[358861342,1745490641650,-1256.71,0.00019178,2]
[358861343,1745490641660,-500.0,0.00019178,2]
[358861344,1745490641670,-638.15,0.00019178,2]
[358861345,1745490641679,-500.0,0.00019178,2]
[358861346,1745490641689,-500.0,0.00019178,2]
[358861347,1745490641698,-4208.31,0.00019178,2]
[358861348,1745490641708,-500.0,0.00019178,2]
[358861349,1745490641718,-500.0,0.00019178,2]
[358861350,1745490641728,-4045.13,0.00019178,2]
[358861351,1745490641737,-1088.19,0.00019178,2]
[358861352,1745490641747,-500.0,0.00019178,2]
[358861353,1745490641756,-955.73,0.00019178,2]
[358861354,1745490641766,-868.18,0.00019178,2]
[358861355,1745490641775,-596.33,0.00019178,2]
[358861356,1745490641785,-500.0,0.00019178,2]
[358861357,1745490641794,-1088.06,0.00019178,2]
[358861358,1745490641804,-500.0,0.00019178,2]
[358861359,1745490641813,-500.0,0.00019178,2]
[358861360,1745490641823,-560.39,0.00019178,2]
[358861361,1745490641832,-591.55,0.00019178,2]
[358861362,1745490641842,-500.0,0.00019178,2]
[358861363,1745490641851,-829.21,0.00019178,2]
[358861364,1745490641860,-840.33,0.00019178,2]
[358861365,1745490641870,-500.0,0.00019178,2]
[358861366,1745490641879,-602.7,0.00019178,2]
[358861367,1745490641888,-500.0,0.00019178,2]
[358861368,1745490641897,-500.0,0.00019178,2]
[358861369,1745490641907,-500.0,0.00019178,2]
[358861370,1745490641916,-500.0,0.00019178,2]
[358861371,1745490641926,-500.0,0.00019178,2]
[358861372,1745490641935,-11148.07,0.00019178,2]
[358861373,1745490641945,-500.0,0.00019178,2]
[358861374,1745490641954,-1032.46,0.00019178,2]
[358861375,1745490641963,-4926.82,0.00019178,2]
[358861376,1745490641973,-500.0,0.00019178,2]
[358861377,1745490641982,-500.0,0.00019178,2]
[358861378,1745490642115,-1403.18,0.00019178,2]
[358861379,1745490642124,-500.0,0.00019178,2]
[358861380,1745490642133,-5297.16,0.00019178,2]
[358861381,1745490642143,-500.0,0.00019178,2]
[358861382,1745490642153,-504.6010686,0.00019178,2]
[358861383,1745490642165,-4358.6,0.00019178,2]
[358861384,1745490642175,-530.86,0.00019178,2]
[358861385,1745490642184,-4338.08,0.00019178,2]
[358861386,1745490642194,-1523.81,0.00019178,2]
[358861387,1745490642204,-542.82929749,0.00019178,2]
[358861388,1745490642214,-500.0,0.00019178,2]
[358861389,1745490642224,-3033.46,0.00019178,2]
[358861390,1745490642233,-636.84,0.00019178,2]
[358861391,1745490642245,-500.0,0.00019178,2]
[358861392,1745490642254,-500.0,0.00019178,2]
[358861393,1745490642263,-500.0,0.00019178,2]
[358861394,1745490642273,-525.87,0.00019178,2]
[358861395,1745490642282,-506.22,0.00019178,2]
[358861396,1745490642291,-550.18,0.00019178,2]
[358861397,1745490642301,-500.0,0.00019178,2]
[358861398,1745490642310,-1010.78,0.00019178,2]
[358861399,1745490642319,-500.0,0.00019178,2]
[358861400,1745490642328,-3019.16,0.00019178,2]
[358861401,1745490642337,-883.45,0.00019178,2]
[358861402,1745490642346,-948.18,0.00019178,2]
[358861403,1745490642357,-782.74,0.00019178,2]
[358861404,1745490642366,-954.55,0.00019178,2]
[358861405,1745490642375,-1484.07,0.00019178,2]
[358861406,1745490642384,-817.48,0.00019178,2]
[358861407,1745490642393,-500.0,0.00019178,2]
[358861408,1745490642402,-751.79,0.00019178,2]
[358861409,1745490642411,-4803.29,0.00019178,2]
[358861410,1745490642421,-4715.57,0.00019178,2]
[358861411,1745490642430,-587.56,0.00019178,2]
[358861412,1745490642440,-535.75,0.00019178,2]
[358861413,1745490642449,-553.42,0.00019178,2]
[358861414,1745490642458,-500.0,0.00019178,2]
[358861415,1745490642467,-500.0,0.00019178,2]
[358861416,1745490642476,-577.95589471,0.00019178,2]
[358861417,1745490642486,-500.0,0.00019178,2]
[358861418,1745490642495,-500.0,0.00019178,2]
[358861419,1745490642505,-537.55826873,0.00019178,2]
[358861420,1745490642514,-300.0,0.00019178,2]
[358861421,1745490642523,-151.0,0.00019233,2]
[358861422,1745490642533,-500.0,0.00019233,2]
[358861423,1745490642542,-500.0,0.00019233,2]
[358861424,1745490642551,-500.0,0.00019233,2]
[358861425,1745490642560,-494.98837596,0.00019233,2]
[358861426,1745490642569,-151.0,0.00019288,2]
[358861427,1745490642579,-500.0,0.00019288,2]
[358861428,1745490642588,-500.0,0.00019288,2]
[358861429,1745490642597,-500.0,0.00019288,2]
[358861430,1745490642606,-151.0,0.0001934,2]
[358861431,1745490642616,-207.4,0.0001934,2]
[358861432,1745490642625,-167.801,0.00019342,2]
[358861433,1745490642635,-151.0,0.00019342,2]
[358861434,1745490642645,-500.0,0.00019342,2]
[358861435,1745490642654,-500.0,0.00019342,2]
[358861436,1745490642664,-500.0,0.00019342,2]
[358861437,1745490642673,-370000.0,0.00019352,2]
[358861438,1745490642682,-376.82443631,0.00019373,2]
[358861439,1745490642691,-500.0,0.00019373,2]
[358861440,1745490642701,-500.0,0.00019373,2]
[358861441,1745490642711,-500.0,0.00019373,2]
[358861442,1745490642720,-500.0,0.00019373,2]
[358861443,1745490642730,-500.0,0.00019373,2]
[358861444,1745490642739,-500.0,0.00019373,2]
[358861445,1745490642748,-500.0,0.00019373,2]
[358861446,1745490642758,-500.0,0.00019373,2]
[358861447,1745490642767,-500.0,0.00019373,2]
[358861448,1745490642776,-500.0,0.00019373,2]
[358861449,1745490642786,-840.0731918,0.00019387,2]
[358861450,1745490642796,-160.0,0.00019387,2]
[358861451,1745490642805,-12576.49486522,0.00019387,2]
[358861452,1745490642815,-420.89490186,0.00019387,2]
[358861453,1745490642824,-207.98754038,0.00019397,2]
[358861454,1745490642833,-500.0,0.00019397,2]
[358861455,1745490642843,-500.0,0.00019397,2]
[358861456,1745490642852,-500.0,0.00019397,2]
[358861457,1745490642862,-160.0,0.00019403,2]
[358861458,1745490642871,-500.0,0.00019452,2]
[358861459,1745490642880,-618.92,0.00019452,2]
[358861460,1745490642890,-500.0,0.00019452,2]
[358861461,1745490642899,-621.2146198,0.00019452,2]
[358861462,1745490642908,-500.0,0.00019452,2]
[358861463,1745490642917,-1006.81,0.00019452,2]
[358861464,1745490642927,-500.0,0.00019452,2]
[358861465,1745490642936,-847.56,0.00019452,2]
[358861466,1745490642945,-500.0,0.00019452,2]
[358861467,1745490642955,-500.0,0.00019452,2]
[358861468,1745490642963,-500.0,0.00019452,2]
[358861469,1745490642972,-500.0,0.00019452,2]
[358861470,1745490642982,-508.07,0.00019452,2]
[358861471,1745490642991,-500.0,0.00019452,2]
[358861472,1745490643000,-500.0,0.00019452,2]
[358861473,1745490643011,-500.0,0.00019452,2]
[358861474,1745490643020,-151.43275294,0.00019452,2]
[358861475,1745490643029,-500.0,0.00019452,2]
[358861476,1745490643038,-1055.73,0.00019452,2]
[358861477,1745490643047,-500.0,0.00019452,2]
[358861478,1745490643056,-151.36763847,0.00019452,2]
[358861479,1745490643066,-500.0,0.00019452,2]
[358861480,1745490643075,-500.0,0.00019452,2]
[358861481,1745490643084,-500.0,0.00019452,2]
[358861482,1745490643092,-500.0,0.00019452,2]
[358861483,1745490643102,-593.07,0.00019452,2]
[358861484,1745490643111,-500.0,0.00019452,2]
[358861485,1745490643120,-500.0,0.00019452,2]
[358861486,1745490643130,-500.0,0.00019452,2]
[358861487,1745490643140,-500.0,0.00019452,2]
[358861488,1745490643149,-500.0,0.00019452,2]
[358861489,1745490643163,-500.0,0.00019452,2]
[358861490,1745490643173,-503.84617787,0.00019452,2]
[358861491,1745490643183,-282.27513394,0.00019452,2]
[358861492,1745490643192,-500.0,0.00019452,2]
[358861493,1745490643204,-500.0,0.00019452,2]
[358861494,1745490643213,-151.0,0.00019452,2]
[358861495,1745490643223,-487.19780915,0.00019452,2]
[358861496,1745490643232,-500.0,0.00019452,2]
[358861497,1745490643242,-500.0,0.00019452,2]
[358861498,1745490643251,-500.0,0.00019452,2]
[358861499,1745490643260,-500.0,0.00019452,2]
[358861500,1745490643269,-500.0,0.00019452,2]
[358861501,1745490643279,-638.87,0.00019452,2]
[358861502,1745490643288,-2348.49,0.00019452,2]
[358861503,1745490643298,-508.83,0.00019452,2]
[358861504,1745490643308,-792.71,0.00019452,2]
[358861505,1745490643317,-696.78,0.00019452,2]
[358861506,1745490643327,-683.73,0.00019452,2]
[358861507,1745490643337,-500.0,0.00019452,2]
[358861508,1745490643346,-500.0,0.00019452,2]
[358861509,1745490643357,-500.0,0.00019452,2]
[358861510,1745490643367,-500.0,0.00019452,2]
[358861511,1745490643376,-500.0,0.00019452,2]
[358861512,1745490643386,-500.0,0.00019452,2]
[358861513,1745490643395,-500.0,0.00019452,2]
[358861515,1745490643404,-717.15,0.00019452,2]
[358861516,1745490643413,-547.26,0.00019452,2]
[358861517,1745490643422,-500.0,0.00019452,2]
[358861518,1745490643431,-1165.5,0.00019452,2]
[358861519,1745490643442,-500.0,0.00019452,2]
[358861520,1745490643451,-617.18,0.00019452,2]
[358861521,1745490643460,-500.0,0.00019452,2]
[358861522,1745490643469,-621.68,0.00019452,2]
[358861523,1745490643478,-500.0,0.00019452,2]
[358861524,1745490643487,-500.0,0.00019452,2]